lending/lending_fUSD_20250130
["ID","MTS","AMOUNT","RATE_DAILY","PERIOD"]
[350934217,1738216244656,-150.51,0.00020822,2]
[350934218,1738216244669,-983.66,0.00020822,2]
[350934219,1738216244678,-150.0,0.00020822,2]
[350934220,1738216244688,-151.68,0.00020822,2]
[350934221,1738216244700,-152.02,0.00020822,2]
[350934222,1738216244710,-878.88,0.00020822,2]
[350934223,1738216244719,-441.6,0.00020822,2]
[350934224,1738216244731,-150.0,0.00020822,2]
[350934225,1738216244741,-983.66,0.00020822,2]
[350934226,1738216244751,-150.0,0.00020822,2]
[350934227,1738216244761,-150.0,0.00020822,2]
[350934228,1738216244770,-150.0,0.00020822,2]
[350934229,1738216244780,-150.0,0.00020822,2]
[350934230,1738216244789,-150.0,0.00020822,2]
[350934231,1738216244799,-438.27,0.00020822,2]
[350934232,1738216244809,-150.0,0.00020822,2]
[350934233,1738216244820,-1976.36,0.00020822,2]
[350934234,1738216244835,-150.0,0.00020822,2]
[350934235,1738216244849,-438.27,0.00020822,2]
[350934236,1738216244859,-150.0,0.00020822,2]
[350934237,1738216244869,-150.0,0.00020822,2]
[350934238,1738216244879,-150.0,0.00020822,2]
[350934239,1738216244891,-438.27,0.00020822,2]
[350934240,1738216244900,-150.0,0.00020822,2]
[350934241,1738216244909,-150.0,0.00020822,2]
[350934242,1738216244919,-150.0,0.00020822,2]
[350934243,1738216244929,-438.27,0.00020822,2]
[350934244,1738216244939,-437.72,0.00020822,2]
[350934245,1738216244949,-150.0,0.00020822,2]
[350934246,1738216244958,-180.25288792,0.00020844,2]
[350934247,1738216244968,-761.0,0.00020855,2]
[350934248,1738216244978,-150.0,0.00020863,2]
[350934249,1738216244988,-500.0,0.00020873,2]
[350934250,1738216244997,-500.08731339,0.00020873,2]
[350934251,1738216245006,-403.64114051,0.00020899,2]
[350934252,1738216245016,-257.42867314,0.00020899,2]
[350934253,1738216245026,-500.0,0.00020899,2]
[350934254,1738216245037,-256.06406958,0.00020899,2]
[350934255,1738216245048,-195641.03326342,0.00020899,2]
[350934256,1738216245057,-622.0,0.000209,2]
[350934257,1738216245068,-6364.257999,0.000209,2]
[350934258,1738216245078,-300665.78611164,0.000209,2]
[350934261,1738216246513,-378.85,0.00019,2]
[350934262,1738216246523,-210513.26591736,0.000209,2]
[350934263,1738216246533,-200.0,0.000209,7]
[350934264,1738216246542,-150.0,0.00020993,2]
[350934265,1738216246551,-750.0,0.00021,2]
[350934266,1738216246561,-2110.0,0.00021,2]
[350934267,1738216246571,-1001.0,0.00021,2]
[350934268,1738216246581,-150.0,0.00021002,2]
[350934269,1738216246590,-182.80850111,0.00021014,2]
[350934270,1738216246600,-150.0,0.00021058,2]
[350934271,1738216246610,-761.0,0.0002107,2]
[350934272,1738216246619,-150.0,0.00021095,2]
[350934273,1738216246629,-180.25288792,0.00021122,2]
[350934274,1738216246638,-177.81,0.00021134,2]
[350934275,1738216246648,-150.0,0.00021152,2]
[350934276,1738216246659,-150.0,0.00021209,2]
[350934277,1738216246670,-150.0,0.0002121,2]
[350934278,1738216246680,-150.0,0.00021215,2]
[350934280,1738216246690,-1000.0,0.00021218,2]
[350934282,1738216246699,-1000.0,0.0002123,2]
[350934284,1738216246710,-150.0,0.00021232,2]
[350934286,1738216246719,-587.0,0.0002124,2]
[350934288,1738216246729,-225.0,0.0002126,2]
[350934290,1738216246738,-1000.0,0.00021283,2]
[350934292,1738216246748,-761.0,0.00021285,2]
[350934294,1738216246757,-150.0,0.00021288,2]
[350934296,1738216246766,-201.2393075,0.00021293,2]
[350934298,1738216246775,-150.0,0.00021296,2]
[350934300,1738216246784,-1000.0,0.00021298,2]
[350934302,1738216246793,-1000.0,0.00021308,2]
[350934304,1738216246802,-1589.08645,0.0002131,2]
[350934306,1738216246811,-150.0,0.00021314,2]
[350934308,1738216246821,-1000.0,0.00021325,2]
[350934310,1738216246830,-500.0,0.00021328,2]
[350934312,1738216246839,-150.0,0.00021351,2]
[350934314,1738216246848,-150.0,0.00021367,2]
[350934316,1738216246857,-150.0,0.00021368,2]
[350934318,1738216246867,-500.0,0.00021369,4]
[350934320,1738216246876,-322.74669744,0.00021369,4]
[350934322,1738216246886,-500.0,0.00021369,4]
[350934324,1738216246895,-500.0,0.00021369,4]
[350934326,1738216246904,-500.0,0.00021369,4]
[350934328,1738216246913,-500.0,0.00021369,4]
[350934330,1738216246922,-516.09514094,0.00021369,4]
[350934332,1738216246932,-500.0,0.00021369,4]
[350934334,1738216246942,-500.0,0.00021369,4]
[350934336,1738216246951,-381.47371317,0.00021369,4]
[350934338,1738216246960,-535.90580602,0.00021369,4]
[350934340,1738216246969,-372.55506364,0.00021369,4]
[350934342,1738216246978,-500.0,0.00021369,4]
[350934344,1738216246987,-570.13729735,0.00021369,4]
[350934346,1738216246997,-500.0,0.00021369,4]
[350934348,1738216247006,-537.35902205,0.00021369,4]
[350934350,1738216247015,-603.29618303,0.00021369,4]
[350934352,1738216247024,-546.55221734,0.00021369,4]
[350934354,1738216247033,-511.44980255,0.00021369,4]
[350934356,1738216247042,-556.57891381,0.00021369,4]
[350934358,1738216247051,-513.19357175,0.00021369,4]
[350934360,1738216247060,-528.37050217,0.00021369,4]
[350934362,1738216247070,-522.49685365,0.00021369,4]
[350934364,1738216247080,-523.58817927,0.00021369,4]
[350934366,1738216247089,-519.50965776,0.00021369,4]
[350934368,1738216247098,-518.24077768,0.00021369,4]
[350934370,1738216247107,-161.82154369,0.00021369,4]
[350934372,1738216247116,-528.33319065,0.00021369,4]
[350934374,1738216247126,-532.06878858,0.00021369,4]
[350934376,1738216247135,-503.96731908,0.00021369,4]
[350934378,1738216247144,-420.84321767,0.00021369,4]
[350934380,1738216247153,-530.10246003,0.00021369,4]
[350934382,1738216247162,-536.22743451,0.00021369,4]
[350934384,1738216247171,-585.39636038,0.00021369,4]
[350934386,1738216247181,-554.69349575,0.00021369,4]
[350934388,1738216247190,-565.27463915,0.00021369,4]
[350934390,1738216247199,-526.57278143,0.00021369,4]
[350934392,1738216247208,-582.86611785,0.00021369,4]
[350934394,1738216247217,-533.17874348,0.00021369,4]
[350934396,1738216247227,-542.95321038,0.00021369,4]
[350934398,1738216247236,-517.69996147,0.00021369,4]
[350934400,1738216247245,-526.8567973,0.00021369,4]
[350934402,1738216247254,-544.97898012,0.00021369,4]
[350934404,1738216247264,-503.52768902,0.00021369,4]
[350934406,1738216247273,-500.0,0.00021369,4]
[350934408,1738216247282,-500.0,0.00021369,4]
[350934410,1738216247291,-539.05554006,0.00021369,4]
[350934412,1738216247300,-223.36960147,0.00021369,4]
[350934414,1738216247309,-159.3835717,0.00021369,4]
[350934416,1738216247319,-543.31632195,0.00021369,4]
[350934418,1738216247328,-584.88301997,0.00021369,4]
[350934420,1738216247337,-507.3144738,0.00021369,4]
[350934422,1738216247346,-515.02548304,0.00021369,4]
[350934424,1738216247355,-548.17649534,0.00021369,4]
[350934425,1738216247365,-522.32679756,0.00021369,4]
[350934426,1738216247374,-575.67439057,0.00021369,4]
[350934427,1738216247383,-569.1096629,0.00021369,4]
[350934428,1738216247392,-589.9585082,0.00021369,4]
[350934429,1738216247402,-500.0,0.00021369,4]
[350934430,1738216247411,-500.0,0.00021369,4]
[350934431,1738216247421,-500.0,0.00021369,4]
[350934432,1738216247430,-500.0,0.00021369,4]
[350934433,1738216247439,-500.0,0.00021369,4]
[350934434,1738216247449,-500.0,0.00021369,4]
[350934435,1738216247458,-500.0,0.00021369,4]
[350934437,1738216247467,-500.0,0.00021369,4]
[350934439,1738216247476,-500.0,0.00021369,4]
[350934440,1738216247486,-500.0,0.00021369,4]
[350934441,1738216247495,-641.79094255,0.00021369,4]
[350934442,1738216247670,-500.0,0.00021369,4]
[350934443,1738216247680,-527.672926,0.00021369,4]
[350934444,1738216247689,-505.82724647,0.00021369,4]
[350934445,1738216247698,-500.0,0.00021369,4]
[350934446,1738216247708,-500.0,0.00021369,4]
[350934447,1738216247716,-558.86975618,0.00021369,4]
[350934448,1738216247725,-631.96680896,0.00021369,4]
[350934449,1738216247735,-595.10004698,0.00021369,4]
[350934450,1738216247744,-555.32149546,0.00021369,4]
[350934451,1738216247755,-599.90536396,0.00021369,4]
[350934452,1738216247764,-552.9969205,0.00021369,4]
[350934453,1738216247773,-554.46610603,0.00021369,4]
[350934454,1738216247781,-582.65114938,0.00021369,4]
[350934455,1738216247792,-603.27411786,0.00021369,4]
[350934456,1738216247803,-542.73091892,0.00021369,4]
[350934457,1738216247814,-559.96035461,0.00021369,4]
[350934458,1738216247823,-537.00808263,0.00021369,4]
[350934459,1738216247833,-609.55368857,0.00021369,4]
[350934460,1738216247842,-533.98806542,0.00021369,4]
[350934461,1738216247852,-500.0,0.00021369,4]
[350934462,1738216247862,-500.0,0.00021369,4]
[350934463,1738216247871,-603.45288523,0.00021369,4]
[350934464,1738216247880,-557.67182716,0.00021369,4]
[350934465,1738216247889,-571.15147178,0.00021369,4]
[350934466,1738216247898,-500.0,0.00021369,4]
[350934467,1738216247909,-520.84109261,0.00021369,4]
[350934468,1738216247918,-566.70400085,0.00021369,4]
[350934469,1738216247927,-603.9797027,0.00021369,4]
[350934470,1738216247938,-500.0,0.00021369,4]
[350934471,1738216247947,-616.85615628,0.00021369,4]
[350934472,1738216247958,-617.54909116,0.00021369,4]
[350934473,1738216247969,-575.35726616,0.00021369,4]
[350934474,1738216247978,-500.0,0.00021369,4]
[350934475,1738216247987,-541.4024461,0.00021369,4]
[350934476,1738216247996,-586.73452216,0.00021369,4]
[350934477,1738216248005,-517.47424283,0.00021369,4]
[350934478,1738216248014,-500.0,0.00021369,4]
[350934479,1738216248023,-527.23900376,0.00021369,4]
[350934480,1738216248032,-500.0,0.00021369,4]
[350934481,1738216248041,-500.0,0.00021369,4]
[350934482,1738216248050,-500.0,0.00021369,4]
[350934483,1738216248060,-547.82797821,0.00021369,4]
[350934484,1738216248069,-500.0,0.00021369,4]
[350934485,1738216248078,-500.0,0.00021369,4]
[350934486,1738216248087,-500.0,0.00021369,4]
[350934487,1738216248096,-585.57123506,0.00021369,4]
[350934488,1738216248106,-500.0,0.00021369,4]
[350934489,1738216248116,-500.0,0.00021369,4]
[350934490,1738216248125,-500.0,0.00021369,4]
[350934491,1738216248134,-521.05964394,0.00021369,4]
[350934492,1738216248143,-562.32884612,0.00021369,4]
[350934493,1738216248152,-608.89599389,0.00021369,4]
[350934494,1738216248162,-554.17569369,0.00021369,4]
[350934495,1738216248171,-185.68588256,0.00021369,4]
[350934496,1738216248180,-500.0,0.00021369,4]
[350934497,1738216248190,-500.0,0.00021369,4]
[350934498,1738216248199,-232.27733762,0.00021369,4]
[350934499,1738216248208,-504.67586576,0.00021369,4]
[350934500,1738216248217,-500.0,0.00021369,4]
[350934501,1738216248226,-590.06956255,0.00021369,4]
[350934502,1738216248235,-500.0,0.00021369,4]
[350934503,1738216248245,-500.0,0.00021369,4]
[350934504,1738216248254,-500.0,0.00021369,4]
[350934505,1738216248263,-500.0,0.00021369,4]
[350934506,1738216248273,-500.0,0.00021369,4]
[350934507,1738216248282,-291.09425063,0.00021369,4]
[350934508,1738216248291,-500.0,0.00021369,4]
[350934509,1738216248300,-500.0,0.00021369,4]
[350934510,1738216248309,-500.0,0.00021369,4]
[350934511,1738216248319,-500.0,0.00021369,4]
[350934512,1738216248329,-546.54628438,0.00021369,4]
[350934513,1738216248339,-549.74546999,0.00021369,4]
[350934514,1738216248349,-534.95992271,0.00021369,4]
[350934515,1738216248359,-570.57311552,0.00021369,4]
[350934516,1738216248369,-550.61356278,0.00021369,4]
[350934517,1738216248379,-555.54689257,0.00021369,4]
[350934518,1738216248388,-529.22143318,0.00021369,4]
[350934519,1738216248398,-541.75442048,0.00021369,4]
[350934520,1738216248408,-576.18397325,0.00021369,4]
[350934521,1738216248417,-527.94656872,0.00021369,4]
[350934522,1738216248427,-500.0,0.00021369,4]
[350934523,1738216248437,-500.0,0.00021369,4]
[350934524,1738216248447,-500.0,0.00021369,4]
[350934525,1738216248456,-527.48314086,0.00021369,4]
[350934526,1738216248466,-557.66355063,0.00021369,4]
[350934527,1738216248475,-500.0,0.00021369,4]
[350934528,1738216248484,-540.64218842,0.00021369,4]
[350934529,1738216248494,-500.0,0.00021369,4]
[350934530,1738216248503,-180.1774253,0.00021369,4]
[350934531,1738216248512,-531.1457424,0.00021369,4]
[350934532,1738216248522,-620.34776225,0.00021369,4]
[350934533,1738216248531,-537.40751681,0.00021369,4]
[350934534,1738216248540,-519.51199889,0.00021369,4]
[350934535,1738216248549,-500.0,0.00021369,4]
[350934536,1738216248558,-573.63967527,0.00021369,4]
[350934537,1738216248567,-535.28632583,0.00021369,4]
[350934538,1738216248577,-573.17931689,0.00021369,4]
[350934539,1738216248586,-564.48774341,0.00021369,4]
[350934540,1738216248598,-154.44346419,0.00021369,4]
[350934541,1738216248608,-569.66709527,0.00021369,4]
[350934542,1738216248617,-554.89410242,0.00021369,4]
[350934543,1738216248626,-500.0,0.00021369,4]
[350934544,1738216248635,-500.0,0.00021369,4]
[350934545,1738216248645,-375.98,0.00021369,4]
[350934546,1738216248654,-609.33756777,0.00021369,4]
[350934547,1738216248667,-500.0,0.00021369,4]
[350934548,1738216248676,-518.53217691,0.00021369,4]
[350934549,1738216248687,-536.49035496,0.00021369,4]
[350934550,1738216248696,-601.3314525,0.00021369,4]
[350934551,1738216248706,-500.0,0.00021369,4]
[350934552,1738216248716,-382.51092734,0.00021369,4]
[350934553,1738216248725,-500.0,0.00021369,4]
[350934554,1738216248734,-156.70719273,0.00021379,2]
[350934555,1738216248744,-150.0,0.00021392,2]
[350934556,1738216248753,-623.64508146,0.00021395,2]
[350934557,1738216248762,-171.30691624,0.000214,2]
[350934558,1738216248772,-180.25288792,0.000214,2]
[350934559,1738216248781,-150.0,0.000214,2]
[350934560,1738216248790,-1013.43993546,0.000214,2]
[350934561,1738216248799,-1013.4399353,0.000214,2]
[350934562,1738216248809,-1013.4399353,0.000214,2]
[350934563,1738216248818,-1013.4399353,0.000214,2]
[350934564,1738216248840,-1013.4399353,0.000214,2]
[350934565,1738216248851,-1013.4399353,0.000214,2]
[350934566,1738216248861,-1013.4399353,0.000214,2]
[350934567,1738216248870,-154.006,0.000214,2]
[350934568,1738216248880,-1013.4399353,0.000214,2]
[350934569,1738216248890,-150.0,0.00021408,2]
[350934570,1738216248900,-150.0,0.00021414,2]
[350934571,1738216248911,-150.0,0.00021415,2]
[350934572,1738216248921,-150.0,0.00021415,2]
[350934573,1738216248931,-500.01873169,0.00021421,2]
[350934574,1738216248941,-1000.0,0.00021425,2]
[350934575,1738216248950,-171.30691622,0.00021426,2]
[350934576,1738216248960,-2639.5,0.00021431,2]
[350934577,1738216248971,-150.0,0.00021445,2]
[350934578,1738216248980,-1000.0,0.00021446,2]
[350934579,1738216248990,-171.30691622,0.00021452,2]
[350934580,1738216249000,-1000.0,0.00021462,2]
[350934581,1738216249009,-1000.0,0.0002147,2]
[350934582,1738216249019,-500.0,0.00021473,2]
[350934583,1738216249028,-171.30691622,0.00021479,2]
[350934584,1738216249038,-150.0,0.00021479,4]
[350934585,1738216249048,-286.13105879,0.00021479,4]
[350934586,1738216249058,-150.0,0.00021479,4]
[350934587,1738216249067,-168.16310297,0.00021498,4]
[350934588,1738216249076,-197.66283774,0.00021499,2]
[350934589,1738216249086,-3746.0,0.00021499,2]
[350934590,1738216249095,-3746.88708153,0.00021499,2]
[350934591,1738216249105,-500.0,0.00021499,4]
[350934592,1738216249115,-516.05052802,0.00021499,4]
[350934593,1738216249125,-500.0,0.00021499,2]
[350934594,1738216249134,-204.53947979,0.00021499,4]
[350934595,1738216249144,-500.0,0.00021499,4]
[350934596,1738216249154,-500.0,0.00021499,4]
[350934597,1738216249163,-500.0,0.00021499,4]
[350934598,1738216249173,-500.0,0.00021499,4]
[350934599,1738216249183,-500.0,0.00021499,4]
[350934600,1738216249193,-500.0,0.00021499,4]
[350934601,1738216249203,-500.0,0.00021499,4]
[350934602,1738216249212,-182.9763507,0.00021499,4]
[350934603,1738216249222,-500.0,0.00021499,4]
[350934604,1738216249232,-500.0,0.00021499,4]
[350934605,1738216249241,-500.0,0.00021499,4]
[350934606,1738216249251,-500.0,0.00021499,4]
[350934607,1738216249261,-500.0,0.00021499,4]
[350934608,1738216249271,-500.0,0.00021499,4]
[350934609,1738216249281,-500.0,0.00021499,4]
[350934610,1738216249291,-500.0,0.00021499,4]
[350934611,1738216249301,-500.0,0.00021499,4]
[350934612,1738216249310,-500.0,0.00021499,4]
[350934613,1738216249320,-500.0,0.00021499,4]
[350934614,1738216249330,-500.0,0.00021499,4]
[350934615,1738216249345,-500.0,0.00021499,4]
[350934616,1738216249356,-500.0,0.00021499,4]
[350934617,1738216249366,-180.3524408,0.00021499,4]
[350934618,1738216249376,-500.0,0.00021499,4]
[350934619,1738216249386,-390.85771112,0.00021499,4]
[350934620,1738216249396,-500.0,0.00021499,4]
[350934621,1738216249406,-500.0,0.00021499,4]
[350934622,1738216249416,-500.0,0.00021499,4]
[350934623,1738216249427,-500.0,0.00021499,4]
[350934624,1738216249436,-500.0,0.00021499,4]
[350934625,1738216249446,-999.0,0.00021499,2]
[350934626,1738216249457,-500.0,0.00021499,4]
[350934627,1738216249467,-500.0,0.00021499,4]
[350934628,1738216249477,-500.0,0.00021499,4]
[350934629,1738216249487,-486.72,0.00021499,4]
[350934630,1738216249497,-500.0,0.00021499,4]
[350934631,1738216249507,-500.0,0.00021499,4]
[350934632,1738216249518,-500.0,0.00021499,4]
[350934633,1738216249529,-500.0,0.00021499,4]
[350934634,1738216249539,-500.0,0.00021499,4]
[350934635,1738216249548,-500.0,0.00021499,4]
[350934636,1738216249558,-500.0,0.00021499,4]
[350934637,1738216249568,-500.0,0.00021499,4]
[350934638,1738216249579,-500.0,0.00021499,4]
[350934639,1738216249589,-500.0,0.00021499,4]
[350934640,1738216249599,-500.0,0.00021499,4]
[350934641,1738216249610,-500.0,0.00021499,4]
[350934642,1738216249619,-424.89691266,0.00021499,4]
[350934643,1738216249630,-500.0,0.00021499,4]
[350934644,1738216249640,-609.36022072,0.00021499,4]
[350934645,1738216249649,-500.0,0.00021499,4]
[350934646,1738216249661,-500.0,0.00021499,4]
[350934647,1738216249672,-564.18697663,0.00021499,4]
[350934648,1738216249683,-233.69473335,0.00021499,4]
[350934649,1738216249693,-34283.06032344,0.000215,2]
[350934650,1738216249756,-1141.1393163,0.000215,2]
[350934652,1738216311131,-263.0,0.00022,60]
[350934653,1738216336148,-23843.7024459,0.00022,30]
[350934654,1738216336181,-5050.0,0.0002288,34]
[350934655,1738216336203,-5050.0,0.0002288,35]
[350934656,1738216336224,-5050.0,0.0002288,33]
[350934657,1738216336246,-500.0,0.00023,60]
[350934658,1738216336267,-500.0,0.00023,60]
[350934659,1738216336289,-500.0,0.00023,60]
[350934660,1738216336310,-502.0,0.00023,90]
[350934661,1738216336333,-8741.2975541,0.00023,30]
[350934662,1738216394764,9562.80920206,0.00014781,7]
[350934663,1738216408184,-20000.0,0.000209,30]
[350934664,1738216439504,-10000.0,0.000209,30]
[350934665,1738216456133,10195.0065731,0.00014781,7]
[350934666,1738216476243,-10000.0,0.000209,30]
[350934667,1738216503634,-25000.0,0.000209,30]
[350934668,1738216536357,-15000.0,0.000209,30]
[350934669,1738216553740,-15000.0,0.000209,30]
[350934670,1738216585183,-5000.0,0.000209,30]
[350934671,1738216616503,-19000.0,0.000209,30]
[350934675,1738216905504,1000.0,0.00023,120]
[350934676,1738216930105,158.34,0.00010137,2]
[350934678,1738217113251,887.0,0.00012,2]
[350934685,1738217432497,-550.0,0.00013,2]
[350934686,1738217432507,-150.0,0.00013349,2]
[350934687,1738217432517,-183.24,0.00013699,2]
[350934688,1738217432527,-150.0,0.000143,2]
[350934689,1738217432537,-150.0,0.00015068,2]
[350934690,1738217432546,-1283.53097828,0.00015849,2]
[350934691,1738217432556,-705.28,0.00017198,2]
[350934692,1738217432566,-5333.842414,0.00018,2]
[350934693,1738217432576,-244.42,0.00019036,2]
[350934694,1738217432586,-250.0,0.00019041,2]
[350934695,1738217432596,-2452.72,0.00019052,2]
[350934696,1738217432607,-476.31,0.0001914,2]
[350934697,1738217432617,-500.0,0.00019164,2]
[350934698,1738217432626,-150.83,0.00019178,2]
[350934699,1738217432636,-716.86,0.00019245,2]
[350934700,1738217432645,-410.19,0.00019269,2]
[350934701,1738217432655,-1000.0,0.00019302,2]
[350934702,1738217432664,-200.0,0.00019306,2]
[350934703,1738217432674,-171.23,0.00019353,2]
[350934704,1738217432683,-705.28,0.00019462,2]
[350934705,1738217432694,-1326.02,0.00019482,2]
[350934706,1738217432704,-174.54,0.00019587,2]
[350934707,1738217432714,-4837.47563709,0.00019717,2]
[350934708,1738217432723,-4837.47563709,0.00019728,2]
[350934709,1738217432733,-4837.47563709,0.00019736,2]
[350934710,1738217432743,-4837.47563709,0.0001975,2]
[350934711,1738217432753,-873.95086604,0.000199,3]
[350934712,1738217432764,-503.28231028,0.0001997,2]
[350934713,1738217432787,-34.71768972,0.0001997,2]
[350934714,1738217432797,-410.19,0.00019982,2]
[350934715,1738217432807,-3655.09231028,0.0002,2]
[350934716,1738217432819,-0.67768972,0.0002,2]
[350934717,1738217432829,-1475.76412503,0.0002,2]
[350934718,1738217432863,-4703.93161,0.0002,2]
[350934720,1738217436782,-1025.55818525,0.0002,2]
[350934732,1738217438336,-2794.74607972,0.0002,2]
[350934733,1738217438346,-409.33,0.0002,2]
[350934734,1738217438357,-1734.22,0.0002,3]
[350934735,1738217438367,-150.0,0.0002,2]
[350934736,1738217438377,-150.0,0.00020002,2]
[350934737,1738217438386,-20.46763058,0.00020014,2]
[350934738,1738217438399,-4979.53236942,0.00020014,2]
[350934739,1738217438408,-5000.0,0.00020077,2]
[350934740,1738217438418,-1286.015,0.00020077,2]
[350934741,1738217438428,-177.858,0.00020077,2]
[350934742,1738217438438,-2551.75,0.0002009,2]
[350934743,1738217438447,-945.43,0.00020091,2]
[350934744,1738217438457,-1177.613179,0.00020107,2]
[350934745,1738217438470,-6622.18157089,0.00020107,2]
[350934746,1738217438482,-2200.20525011,0.00020107,2]
[350934747,1738217438492,-2500.0,0.0002011,2]
[350934748,1738217438502,-3908.0,0.00020156,2]
[350934749,1738217438512,-150.0,0.00020156,2]
[350934750,1738217438522,-1006.0,0.00020156,2]
[350934751,1738217438533,-1107.0,0.00020156,2]
[350934752,1738217438544,-5000.0,0.00020187,2]
[350934753,1738217438554,-5000.0,0.00020202,2]
[350934754,1738217438563,-2558.87,0.00020206,2]
[350934755,1738217438573,-10000.0,0.00020213,2]
[350934756,1738217438582,-5000.0,0.00020222,2]
[350934757,1738217438591,-150.83,0.00020244,2]
[350934758,1738217438601,-500.0,0.00020269,7]
[350934759,1738217438611,-150.0,0.00020278,2]
[350934760,1738217438621,-5000.0,0.00020345,2]
[350934761,1738217438630,-2503.42,0.00020387,2]
[350934762,1738217438640,-17607.3,0.000204,2]
[350934763,1738217438650,-25000.0,0.00020411,2]
[350934764,1738217438660,-2998.06,0.00020467,2]
[350934765,1738217438670,-2558.87,0.00020485,2]
[350934766,1738217438680,-20080.17777562,0.00020532,2]
[350934767,1738217438693,-1513.37807683,0.00020532,2]
[350934768,1738217438706,-1574.98315639,0.00020532,2]
[350934769,1738217438724,-467.46624105,0.00020532,2]
[350934770,1738217438735,-650.410586,0.00020532,2]
[350934777,1738217440413,-713.58416411,0.00020532,2]
[350934778,1738217440424,-500.0,0.00020543,7]
[350934779,1738217440435,-656.69948152,0.00020548,2]
[350934780,1738217440469,-365.78550015,0.00020548,2]
[350934781,1738217440480,-253.45,0.00020548,2]
[350934782,1738217440495,-624.79062538,0.00020548,2]
[350934783,1738217440607,-3476.04207273,0.00020548,2]
[350934784,1738217440619,-15086.91232022,0.00020548,2]
[350934785,1738217440628,-177.64,0.00020548,2]
[350934786,1738217440638,-5000.0,0.00020554,2]
[350934787,1738217440648,-5000.0,0.00020637,2]
[350934788,1738217440657,-157.98,0.0002065,2]
[350934789,1738217440667,-2555.49,0.00020681,2]
[350934790,1738217440677,-25000.0,0.00020684,2]
[350934791,1738217440687,-410.19,0.00020695,2]
[350934792,1738217440697,-5000.0,0.00020741,2]
[350934793,1738217440707,-434.63,0.0002078,2]
[350934794,1738217440717,-3000.0,0.000208,2]
[350934795,1738217440726,-500.0,0.00020817,7]
[350934796,1738217440736,-7902.54,0.00020822,2]
[350934797,1738217440746,-2500.0,0.00020841,2]
[350934798,1738217440755,-1743.0,0.00020855,2]
[350934799,1738217440764,-7651.88911898,0.000209,30]
[350934800,1738217440898,-1323.18627812,0.000209,30]
[350934801,1738217440925,-6832.792194,0.000209,30]
[350934802,1738217440937,-864.444,0.000209,30]
[350934803,1738217440948,-2088.72351294,0.000209,30]
[350934804,1738217440958,-205.44546595,0.000209,2]
[350934805,1738217440968,-6802.47475225,0.00020904,2]
[350934806,1738217440980,-8947.21879473,0.00020904,2]
[350934807,1738217440992,-8943.78386462,0.00020904,2]
[350934808,1738217441004,-306.5225884,0.00020904,2]
[350934809,1738217441013,-2503.42,0.00020924,2]
[350934810,1738217441023,-150.0,0.00020943,2]
[350934811,1738217441033,-150.419,0.00020943,2]
[350934812,1738217441043,-150.0,0.00020956,2]
[350934813,1738217441053,-2021.0,0.00020956,2]
[350934814,1738217441063,-1271.0,0.00020956,2]
[350934815,1738217441078,-150.0,0.00020956,2]
[350934816,1738217441087,-568.0,0.00020956,2]
[350934817,1738217441097,-637.0,0.00020956,2]
[350934818,1738217441107,-1170.18707312,0.00020956,2]
[350934819,1738217441120,-695.81292688,0.00020956,2]
[350934820,1738217441130,-2951.0,0.00020956,2]
[350934821,1738217441141,-1263.0,0.00020956,2]
[350934822,1738217441152,-782.0,0.00020956,2]